fUST/lending_fUST_20251023
["ID","MTS","AMOUNT","RATE_DAILY","PERIOD"]
[392160231,1761222520552,386.27960848,0.0002,2]
[392160234,1761222522692,2968.9173923,0.00022597,2]
[392160235,1761222534494,111951.0,0.00036105,30]
[392160236,1761222551995,178.23,0.00022256,2]
[392160237,1761222552408,237.64,0.00023224,2]
[392160291,1761222620024,842.0,0.00023297,2]
[392160292,1761222626224,842.0,0.00023162,2]
[392160293,1761222627337,162.36,0.00022065,2]
[392160294,1761222627787,216.47,0.00023024,2]
[392160305,1761222631944,3724.70299922,0.00023436,2]
[392160306,1761222631968,398.29700078,0.00023436,2]
[392160310,1761222632184,-383.14772059,0.00023548,2]
[392160311,1761222632194,-200.0,0.00023548,2]
[392160312,1761222632203,-168.0,0.00023562,2]
[392160313,1761222632212,-168.1863536,0.00023564,2]
[392160314,1761222632221,-168.0,0.00023565,2]
[392160315,1761222632231,-217.13612776,0.00023573,2]
[392160316,1761222632241,-4123.0,0.00023588,2]
[392160317,1761222632250,-168.0,0.00023589,2]
[392160318,1761222632260,-300.0,0.00023624,2]
[392160319,1761222632269,-1200.0,0.00023624,2]
[392160320,1761222632278,-2953.2,0.00023625,3]
[392160321,1761222632287,-859.32979806,0.00023625,3]
[392160322,1761222632298,-617.27020194,0.00023625,3]
[392160323,1761222632307,-738.3,0.00023625,3]
[392160324,1761222632318,-369.15,0.00023625,3]
[392160325,1761222632327,-307.62,0.00023625,3]
[392160326,1761222632337,-151.0,0.00023635,2]
[392160327,1761222632347,-151.0,0.00023635,2]
[392160328,1761222632356,-151.0,0.00023635,2]
[392160329,1761222632365,-151.0,0.00023635,2]
[392160330,1761222632374,-151.0,0.00023635,2]
[392160331,1761222632383,-221.60135417,0.00023635,2]
[392160332,1761222632392,-1000.0,0.00023635,2]
[392160333,1761222632401,-1000.0,0.00023635,2]
[392160334,1761222632411,-1000.0,0.00023635,2]
[392160335,1761222632421,-1000.0,0.00023635,2]
[392160336,1761222632431,-1000.0,0.00023635,2]
[392160337,1761222632440,-1000.0,0.00023635,2]
[392160338,1761222632449,-1000.0,0.00023635,2]
[392160339,1761222632459,-1000.0,0.00023635,2]
[392160340,1761222632469,-1000.0,0.00023635,2]
[392160341,1761222632478,-1000.0,0.00023635,2]
[392160342,1761222632487,-1000.0,0.00023635,2]
[392160343,1761222632497,-1000.0,0.00023635,2]
[392160344,1761222632506,-1000.0,0.00023635,2]
[392160345,1761222632515,-1000.0,0.00023635,2]
[392160346,1761222632525,-1000.0,0.00023635,2]
[392160347,1761222632534,-1000.0,0.00023635,2]
[392160348,1761222632544,-1000.0,0.00023635,2]
[392160349,1761222632554,-1000.0,0.00023635,2]
[392160350,1761222632564,-276122.64830781,0.00023635,2]
[392160351,1761222632575,-34860.2895494,0.00023635,2]
[392160352,1761222632585,-500.0,0.00023673,2]
[392160353,1761222632595,-500.0,0.00023673,2]
[392160354,1761222632604,-500.0,0.00023673,2]
[392160355,1761222632614,-500.0,0.00023673,2]
[392160356,1761222632623,-500.0,0.00023673,2]
[392160357,1761222632632,-500.0,0.00023673,2]
[392160358,1761222632641,-500.0,0.00023673,2]
[392160359,1761222632651,-500.0,0.00023673,2]
[392160360,1761222632660,-500.0,0.00023673,2]
[392160361,1761222632669,-500.0,0.00023673,2]
[392160362,1761222632767,-500.0,0.00023673,2]
[392160363,1761222632780,-500.0,0.00023673,2]
[392160364,1761222632790,-500.0,0.00023673,2]
[392160365,1761222632799,-500.0,0.00023673,2]
[392160366,1761222632809,-500.0,0.00023673,2]
[392160367,1761222632821,-477.84822159,0.00023673,2]
[392160368,1761222632830,-50000.0,0.00023673,2]
[392160369,1761222632840,-200.399999,0.00023673,2]
[392160370,1761222632850,-186.9677385,0.00023693,2]
[392160371,1761222632859,-301.3389584,0.00023693,2]
[392160372,1761222632868,-1198.2800773,0.00023695,2]
[392160373,1761222632878,-11349.2713676,0.00023695,2]
[392160374,1761222632887,-500.0,0.00023695,2]
[392160375,1761222632897,-43500.7090137,0.000237,2]
[392160376,1761222632906,-160.0,0.00023731,2]
[392160377,1761222632915,-500.0,0.00023734,2]
[392160378,1761222632925,-500.0,0.00023734,2]
[392160379,1761222632934,-500.0,0.00023734,2]
[392160380,1761222632944,-168.0,0.00023749,2]
[392160381,1761222632954,-500.0,0.00023773,2]
[392160382,1761222632963,-500.0,0.00023773,2]
[392160383,1761222632973,-500.0,0.00023773,2]
[392160384,1761222632982,-500.0,0.00023773,2]
[392160385,1761222632992,-500.0,0.00023773,2]
[392160386,1761222633001,-215.3769625,0.00023773,2]
[392160387,1761222633010,-500.0,0.00023773,2]
[392160388,1761222633020,-500.0,0.00023773,2]
[392160389,1761222633030,-500.0,0.00023773,2]
[392160390,1761222633039,-500.0,0.00023773,2]
[392160391,1761222633049,-500.0,0.00023773,2]
[392160392,1761222633058,-168.0,0.00023789,2]
[392160393,1761222633070,-959.0,0.0002384,2]
[392160394,1761222633079,-453.126896,0.00023848,28]
[392160395,1761222633089,-282.274804,0.00023848,28]
[392160396,1761222633098,-500.0,0.00023969,2]
[392160397,1761222633107,-5390.93646934,0.00023972,2]
[392160398,1761222633116,-214.52445024,0.00023973,2]
[392160399,1761222633126,-500.0,0.00023973,2]
[392160400,1761222633137,-500.0,0.00023973,2]
[392160401,1761222633147,-500.0,0.00023973,2]
[392160402,1761222633157,-500.0,0.00023973,2]
[392160403,1761222633167,-500.0,0.00023973,2]
[392160404,1761222633177,-501.73203832,0.00023973,2]
[392160405,1761222633187,-500.0,0.00023973,2]
[392160406,1761222633197,-500.0,0.00023973,2]
[392160407,1761222633208,-500.0,0.00023973,2]
[392160408,1761222633219,-500.0,0.00023973,2]
[392160409,1761222633230,-500.0,0.00023973,2]
[392160410,1761222633242,-500.0,0.00023973,2]
[392160411,1761222633253,-500.0,0.00023973,2]
[392160412,1761222633263,-500.0,0.00023973,2]
[392160413,1761222633273,-500.0,0.00023973,2]
[392160414,1761222633283,-500.0,0.00023973,2]
[392160415,1761222633292,-500.0,0.00023973,2]
[392160416,1761222633302,-500.0,0.00023973,2]
[392160417,1761222633312,-522.68705568,0.00023973,2]
[392160418,1761222633324,-506.59667795,0.00023973,2]
[392160419,1761222633334,-500.0,0.00023973,2]
[392160420,1761222633343,-399.5059355,0.00023973,2]
[392160421,1761222633353,-501.58711182,0.00023973,2]
[392160422,1761222633362,-500.0,0.00023973,2]
[392160423,1761222633372,-500.0,0.00023973,2]
[392160424,1761222633382,-500.0,0.00023973,2]
[392160425,1761222633391,-500.0,0.00023973,2]
[392160426,1761222633401,-500.0,0.00023973,2]
[392160427,1761222633411,-500.0,0.00023973,2]
[392160428,1761222633420,-500.0,0.00023973,2]
[392160429,1761222633430,-500.0,0.00023973,2]
[392160430,1761222633439,-500.0,0.00023973,2]
[392160431,1761222633448,-500.0,0.00023973,2]
[392160432,1761222633458,-270.59,0.00023983,2]
[392160433,1761222633467,-100000.0,0.0002399,2]
[392160434,1761222633476,-151.0,0.0002399,7]
[392160435,1761222633486,-151.0,0.0002399,7]
[392160436,1761222633495,-8057.721065,0.00024,2]
[392160437,1761222633504,-168.0,0.00024036,2]
[392160438,1761222633514,-3092.0,0.00024081,2]
[392160439,1761222633523,-3092.0,0.00024081,2]
[392160440,1761222633532,-1452.33171269,0.00024109,2]
[392160441,1761222633542,-281.0,0.00024187,2]
[392160442,1761222633552,-1000.0,0.00024221,2]
[392160443,1761222633561,-219.33073743,0.00024221,2]
[392160444,1761222633573,-1122.9652031,0.00024221,2]
[392160445,1761222633582,-1000.0,0.00024221,2]
[392160446,1761222633591,-543.30389971,0.00024221,2]
[392160447,1761222633601,-1000.0,0.00024221,2]
[392160448,1761222633611,-768.81353123,0.00024221,2]
[392160449,1761222633620,-1000.0,0.00024221,2]
[392160450,1761222633630,-1000.0,0.00024221,2]
[392160451,1761222633639,-1000.0,0.00024221,2]
[392160452,1761222633648,-1000.0,0.00024221,2]
[392160453,1761222633656,-1000.0,0.00024221,2]
[392160454,1761222633665,-1000.0,0.00024221,2]
[392160455,1761222633675,-548.79272722,0.00024221,2]
[392160456,1761222633684,-500.0,0.00024243,2]
[392160457,1761222633694,-1000.0,0.00024321,2]
[392160458,1761222633703,-1000.0,0.00024321,2]
[392160459,1761222633711,-1000.0,0.00024321,2]
[392160460,1761222633720,-1000.0,0.00024321,2]
[392160461,1761222633730,-1000.0,0.00024321,2]
[392160462,1761222633739,-1003.44319891,0.00024321,2]
[392160463,1761222633749,-1000.0,0.00024321,2]
[392160464,1761222633758,-1000.0,0.00024321,2]
[392160465,1761222633767,-334.96234492,0.00024321,2]
[392160466,1761222633777,-1000.0,0.00024321,2]
[392160467,1761222633787,-291.75,0.00024321,2]
[392160468,1761222633796,-3092.0,0.00024364,2]
[392160469,1761222633806,-959.0,0.00024442,2]
[392160470,1761222633818,-993.6438054,0.00024469,3]
[392160471,1761222633829,-340.0,0.00024471,2]
[392160472,1761222633839,-246.09878566,0.00024513,2]
[392160473,1761222633848,-500.0,0.00024517,2]
[392160474,1761222633857,-191.50882481,0.00024521,2]
[392160475,1761222633867,-1000.0,0.00024521,2]
[392160476,1761222633875,-428.12470712,0.00024521,2]
[392160477,1761222633886,-1000.0,0.00024521,2]
[392160478,1761222633895,-837.93959275,0.00024521,2]
[392160479,1761222633906,-1000.0,0.00024521,2]
[392160480,1761222633916,-1000.0,0.00024521,2]
[392160481,1761222633925,-1000.0,0.00024521,2]
[392160482,1761222633935,-1000.0,0.00024521,2]
[392160483,1761222633944,-1000.0,0.00024521,2]
[392160484,1761222633953,-1000.0,0.00024521,2]
[392160485,1761222633963,-1145.585206,0.00024521,2]
[392160486,1761222633973,-548.97049182,0.00024521,2]
[392160487,1761222633982,-1000.0,0.00024521,2]
[392160488,1761222633991,-945.79223842,0.00024521,2]
[392160489,1761222634001,-1000.0,0.00024521,2]
[392160490,1761222634012,-1000.0,0.00024521,2]
[392160491,1761222634021,-1000.0,0.00024521,2]
[392160492,1761222634030,-1000.0,0.00024521,2]
[392160493,1761222634040,-1000.0,0.00024521,2]
[392160494,1761222634050,-1000.0,0.00024521,2]
[392160495,1761222634059,-1000.0,0.00024521,2]
[392160496,1761222634072,-1000.0,0.00024521,2]
[392160497,1761222634081,-1000.0,0.00024521,2]
[392160498,1761222634091,-1000.0,0.00024521,2]
[392160499,1761222634100,-500.91287487,0.00024521,2]
[392160500,1761222634109,-1000.0,0.00024521,2]
[392160501,1761222634119,-500.0,0.00024658,2]
[392160502,1761222634128,-500.0,0.00024658,2]
[392160503,1761222634137,-500.0,0.00024658,2]
[392160504,1761222634146,-178.93299678,0.00024658,2]
[392160505,1761222634156,-650.0,0.00024658,2]
[392160506,1761222634165,-500.0,0.00024658,2]
[392160507,1761222634175,-500.0,0.00024658,2]
[392160508,1761222634184,-500.0,0.00024658,2]
[392160509,1761222634194,-500.0,0.00024658,2]
[392160510,1761222634204,-500.0,0.00024658,2]
[392160511,1761222634213,-500.0,0.00024658,2]
[392160512,1761222634223,-500.0,0.00024658,2]
[392160513,1761222634232,-256.63716037,0.00024658,2]
[392160514,1761222634242,-500.0,0.00024658,2]
[392160515,1761222634251,-500.0,0.00024658,2]
[392160516,1761222634260,-500.0,0.00024658,2]
[392160517,1761222634270,-500.0,0.00024658,2]
[392160518,1761222634279,-166.49995721,0.00024658,2]
[392160519,1761222634288,-302.50730687,0.00024658,2]
[392160520,1761222634297,-379.81897762,0.00024658,2]
[392160521,1761222634307,-276.15696521,0.00024658,2]
[392160522,1761222634319,-497.08253738,0.00024658,2]
[392160523,1761222634329,-883.70228868,0.00024658,2]
[392160524,1761222634338,-1380.78482606,0.00024658,2]
[392160525,1761222634348,-355.85127595,0.00024658,2]
[392160526,1761222634357,-184.73986566,0.00024658,2]
[392160527,1761222634367,-168.23453732,0.00024658,2]
[392160528,1761222634377,-640.53229671,0.00024708,2]
[392160529,1761222634387,-959.0,0.00024727,2]
[392160530,1761222634396,-217.13612776,0.0002475,2]
[392160531,1761222634406,-397.0,0.00024751,2]
[392160532,1761222634416,-274.84728852,0.00024752,2]
[392160533,1761222634425,-3092.0,0.00024759,2]
[392160534,1761222634434,-322.44706909,0.00024768,2]
[392160535,1761222634443,-1500.0,0.00024768,2]
[392160536,1761222634453,-1500.0,0.00024768,2]
[392160537,1761222634463,-693.49122843,0.00024768,2]
[392160538,1761222634472,-1500.0,0.00024768,2]
[392160539,1761222634481,-537.35341875,0.00024768,2]
[392160540,1761222634490,-1500.0,0.00024768,2]
[392160541,1761222634499,-1500.0,0.00024768,2]
[392160542,1761222634509,-1500.0,0.00024768,2]
[392160543,1761222634518,-500.0,0.00024773,2]
[392160544,1761222634601,-500.0,0.00024773,2]
[392160545,1761222634611,-374.71343951,0.00024773,2]
[392160546,1761222634620,-411.03744154,0.00024773,2]
[392160547,1761222634628,-500.0,0.00024773,2]
[392160548,1761222634637,-500.0,0.00024773,2]
[392160549,1761222634647,-510.72948539,0.00024773,2]
[392160550,1761222634656,-500.0,0.00024773,2]
[392160551,1761222634665,-500.89163073,0.00024773,2]
[392160552,1761222634674,-500.0,0.00024773,2]
[392160553,1761222634683,-500.0,0.00024773,2]
[392160554,1761222634692,-500.0,0.00024773,2]
[392160555,1761222634701,-500.0,0.00024773,2]
[392160556,1761222634710,-500.0,0.00024791,2]
[392160557,1761222634719,-246.09878566,0.00024833,2]
[392160558,1761222634728,-157.444438,0.00024868,7]
[392160559,1761222634737,-1500.0,0.00024868,2]
[392160560,1761222634749,-1504.6484691,0.00024868,2]
[392160561,1761222634758,-1500.0,0.00024868,2]
[392160562,1761222634767,-1500.0,0.00024868,2]
[392160563,1761222634776,-1500.0,0.00024868,2]
[392160564,1761222634785,-1500.0,0.00024868,2]
[392160565,1761222634794,-1500.0,0.00024868,2]
[392160566,1761222634803,-1500.0,0.00024868,2]
[392160567,1761222634812,-500.0,0.00024878,2]
[392160568,1761222634822,-1000.0,0.00024888,2]
[392160569,1761222634831,-29648.06,0.000249,7]
[392160570,1761222634840,-403.24192968,0.000249,7]
[392160571,1761222634849,-156632.37788,0.000249,2]
[392160572,1761222634859,-160.0,0.000249,7]
[392160573,1761222634868,-160.0,0.00024913,2]
[392160574,1761222634877,-1138.72408304,0.0002493,2]
[392160575,1761222634886,-500.0,0.00024933,2]
[392160576,1761222634895,-324.71,0.00024942,2]
[392160577,1761222634904,-500.0,0.00024988,2]
[392160578,1761222634914,-5906.4,0.00024995,3]
[392160579,1761222634923,-2953.2,0.00024995,3]
[392160580,1761222634932,-1476.6,0.00024995,3]
[392160581,1761222634941,-615.24,0.00024995,3]
[392160582,1761222634951,-1000.0,0.00025,14]
[392160583,1761222634961,-1076.59631976,0.00025,2]
[392160584,1761222634971,-450.74551891,0.00025,7]
[392160585,1761222634980,-1411.46210373,0.00025,2]
[392160586,1761222634989,-19152.75425938,0.00025,3]
[392160587,1761222634999,-363.09185821,0.00025,2]
[392160588,1761222635007,-403.24192968,0.00025,3]
[392160589,1761222635016,-547.73698823,0.00025042,2]
[392160590,1761222635025,-314.11118688,0.00025052,2]
[392160591,1761222635035,-500.0,0.00025065,2]
[392160592,1761222635044,-456.6640712,0.00025068,2]
[392160593,1761222635053,-1500.0,0.00025068,2]
[392160594,1761222635063,-1500.0,0.00025068,2]
[392160595,1761222635073,-1500.0,0.00025068,2]
[392160596,1761222635082,-471.58432199,0.00025068,2]
[392160597,1761222635092,-459.24520816,0.00025068,2]
[392160598,1761222635101,-1074.37128432,0.00025068,2]
[392160599,1761222635111,-1500.0,0.00025068,2]
[392160600,1761222635120,-589.70909596,0.00025068,2]
[392160601,1761222635129,-416.93481961,0.00025068,2]
[392160602,1761222635138,-1500.0,0.00025068,2]
[392160603,1761222635148,-1500.0,0.00025068,2]
[392160604,1761222635157,-1449.41758538,0.00025068,2]
[392160605,1761222635166,-1500.0,0.00025068,2]
[392160606,1761222635176,-1500.0,0.00025068,2]
[392160607,1761222635185,-417.44199242,0.00025068,2]
[392160608,1761222635194,-1500.0,0.00025068,2]
[392160609,1761222635203,-506.90143914,0.00025068,2]
[392160610,1761222635212,-186.05207884,0.00025093,2]
[392160611,1761222635223,-200.0,0.000251,2]
[392160612,1761222635232,-332.53175819,0.00025103,2]
[392160613,1761222635241,-1779.25637975,0.00025152,2]
[392160614,1761222635251,-959.0,0.00025184,2]
[392160615,1761222635260,-261.56979241,0.00025249,3]
[392160616,1761222635270,-2000.0,0.00025316,2]
[392160617,1761222635279,-2000.0,0.00025316,2]
[392160618,1761222635289,-2000.0,0.00025316,2]
[392160619,1761222635298,-2000.0,0.00025316,2]
[392160620,1761222635308,-2000.0,0.00025316,2]
[392160621,1761222635319,-510.65794577,0.00025316,2]
[392160622,1761222635330,-200.73278272,0.0002532,2]
[392160623,1761222635339,-1063.67264851,0.00025321,2]
[392160624,1761222635349,-1000.0,0.00025321,2]
[392160625,1761222635358,-1000.0,0.00025321,2]
[392160626,1761222635367,-1000.0,0.00025321,2]
[392160627,1761222635378,-1000.0,0.00025321,2]
[392160628,1761222635388,-1000.0,0.00025321,2]
[392160629,1761222635397,-1000.0,0.00025321,2]
[392160630,1761222635407,-1000.0,0.00025321,2]
[392160631,1761222635416,-1000.0,0.00025321,2]
[392160632,1761222635426,-591.16757011,0.00025333,2]
[392160633,1761222635436,-500.0,0.00025339,2]
[392160634,1761222635445,-1598.6327963,0.00025416,2]
[392160635,1761222635455,-520.02445686,0.00025416,2]
[392160636,1761222635464,-2000.0,0.00025416,2]
[392160637,1761222635474,-907.65915778,0.00025416,2]
[392160638,1761222635483,-1754.90978642,0.00025416,2]
[392160639,1761222635492,-2000.0,0.00025416,2]
[392160640,1761222635513,-2000.0,0.00025416,2]
[392160641,1761222635528,-250.0,0.00025421,2]
[392160642,1761222635538,-390.11853006,0.00025421,2]
[392160643,1761222635547,-300.0,0.00025421,2]
[392160644,1761222635556,-260.0,0.00025461,2]
[392160645,1761222635567,-3453.0,0.00025487,2]
[392160646,1761222635576,-1045.23289046,0.00025544,3]
[392160647,1761222635585,-197.96453849,0.00025545,3]
[392160648,1761222635594,-302.82216717,0.00025545,2]
[392160649,1761222635603,-452.1143103,0.00025548,2]
[392160650,1761222635613,-923.69932829,0.00025563,2]
[392160651,1761222635622,-8369.02232118,0.00025566,2]
[392160652,1761222635631,-212.63094725,0.00025567,2]
[392160653,1761222635640,-486.43568193,0.00025613,2]
[392160654,1761222635649,-3453.0,0.00025616,2]
[392160655,1761222635659,-2002.01981445,0.00025616,2]
[392160656,1761222635668,-1972.36268032,0.00025616,2]
[392160657,1761222635677,-1967.37337688,0.00025616,2]
[392160658,1761222635686,-500.0,0.00025616,2]
[392160659,1761222635695,-2000.0,0.00025616,2]
[392160660,1761222635704,-2000.0,0.00025616,2]
[392160661,1761222635714,-1874.42197656,0.00025616,2]
[392160662,1761222635724,-500.0,0.00025616,2]
[392160663,1761222635734,-2000.0,0.00025616,2]
[392160664,1761222635744,-420.0,0.00025629,2]
[392160665,1761222635756,-163.0,0.0002567,3]
[392160666,1761222635765,-175.0,0.0002567,3]
[392160667,1761222635774,-158.65253999,0.0002567,3]
[392160668,1761222635783,-163.0,0.0002567,3]
[392160669,1761222635792,-167.0,0.0002567,3]
[392160670,1761222635801,-179.86718665,0.0002567,3]
[392160671,1761222635810,-167.0,0.0002567,3]
[392160672,1761222635821,-166.0,0.0002567,3]
[392160673,1761222635830,-330.0,0.0002567,3]
[392160674,1761222635840,-166.0,0.0002567,3]
[392160675,1761222635849,-330.0,0.0002567,3]
[392160676,1761222635858,-166.0,0.0002567,3]
[392160677,1761222635867,-330.0,0.0002567,3]
[392160678,1761222635877,-166.0,0.0002567,3]
[392160679,1761222635886,-330.0,0.0002567,3]
[392160680,1761222635895,-330.0,0.0002567,3]
[392160681,1761222635904,-330.0,0.0002567,3]
[392160682,1761222635913,-330.0,0.0002567,3]
[392160683,1761222635922,-330.0,0.0002567,3]
[392160684,1761222635931,-330.0,0.0002567,3]
[392160685,1761222635940,-330.0,0.0002567,3]
[392160686,1761222635950,-330.0,0.0002567,3]
[392160687,1761222635960,-1680.0,0.00025747,2]
[392160688,1761222635969,-226.82588176,0.00025749,2]
[392160689,1761222635978,-403.24192968,0.00025763,3]
[392160690,1761222635988,-807.0,0.00025764,7]
[392160691,1761222635997,-844.0,0.00025793,2]
[392160692,1761222636006,-332.23585508,0.00025805,2]
[392160693,1761222636015,-2500.0,0.00025864,2]
[392160694,1761222636024,-2500.0,0.00025864,2]
[392160695,1761222636034,-275.98832958,0.00025864,2]
[392160696,1761222636043,-979.54191128,0.00025864,2]
[392160697,1761222636052,-2500.0,0.00025864,2]
[392160698,1761222636061,-1621.656604,0.00025868,2]
[392160699,1761222636072,-237.00803039,0.00025868,2]
[392160700,1761222636081,-911.93907548,0.00025868,2]
[392160701,1761222636090,-1500.0,0.00025868,2]
[392160702,1761222636099,-1500.0,0.00025868,2]
[392160703,1761222636108,-500.0,0.00025868,2]
[392160704,1761222636118,-1500.0,0.00025868,2]
[392160705,1761222636127,-500.0,0.00025868,2]
[392160706,1761222636136,-959.0,0.00025895,2]
[392160707,1761222636146,-378.83,0.00025902,2]
[392160708,1761222636156,-217.13612776,0.00025927,2]
[392160709,1761222636165,-1284.45343158,0.00025928,2]
[392160710,1761222636175,-157.76588859,0.00025931,3]
[392160711,1761222636184,-1621.26686247,0.00025964,2]
[392160712,1761222636264,-1002.88994788,0.00025964,2]
[392160713,1761222636274,-2500.0,0.00025964,2]
[392160714,1761222636284,-350.0,0.00025968,2]
[392160715,1761222636293,-450.0,0.00025968,2]
[392160716,1761222636302,-3115.97002093,0.00026,2]
[392160717,1761222636311,-300.0,0.00026,13]
[392160718,1761222636322,-300.0,0.00026,13]
[392160719,1761222636332,-300.0,0.00026,13]
[392160720,1761222636342,-300.0,0.00026,13]
[392160721,1761222636351,-279.32,0.00026,13]
[392160722,1761222636361,-453.126896,0.00026,2]
[392160723,1761222636371,-3684.284961,0.00026,2]
[392160724,1761222636380,-282.274804,0.00026,2]
[392160725,1761222636389,-360.0,0.00026009,2]
[392160726,1761222636399,-403.24192968,0.00026027,7]
[392160727,1761222636408,-151.0,0.00026027,7]
[392160728,1761222636418,-151.0,0.00026027,7]
[392160729,1761222636427,-151.0,0.00026027,7]
[392160730,1761222636436,-192.799843,0.00026027,7]
[392160731,1761222636449,-192.799843,0.00026027,7]
[392160732,1761222636458,-151.0,0.00026027,7]
[392160733,1761222636467,-172.21837372,0.00026027,7]
[392160734,1761222636476,-192.799843,0.00026027,7]
[392160735,1761222636486,-192.799843,0.00026027,7]
[392160736,1761222636495,-192.799843,0.00026027,7]
[392160737,1761222636505,-192.799843,0.00026027,7]
[392160738,1761222636514,-192.799843,0.00026027,7]
[392160739,1761222636523,-192.799843,0.00026027,7]
[392160740,1761222636532,-192.799843,0.00026027,7]
[392160741,1761222636542,-192.799843,0.00026027,7]
[392160742,1761222636551,-192.799843,0.00026027,7]
[392160743,1761222636560,-192.799843,0.00026027,7]
[392160744,1761222636571,-192.799843,0.00026027,7]
[392160745,1761222636581,-192.799843,0.00026027,7]
[392160746,1761222636590,-192.799843,0.00026027,7]
[392160747,1761222636600,-192.799843,0.00026027,7]
[392160748,1761222636609,-192.799843,0.00026027,7]
[392160749,1761222636619,-192.799843,0.00026027,7]
[392160750,1761222636628,-192.799843,0.00026027,7]
[392160751,1761222636641,-192.799852,0.00026027,7]
[392160752,1761222636656,-151.0,0.00026027,7]
[392160753,1761222636666,-151.0,0.00026027,7]
[392160754,1761222636676,-151.0,0.00026027,7]
[392160755,1761222636685,-151.0,0.00026027,7]
[392160756,1761222636694,-151.0,0.00026027,7]
[392160757,1761222636704,-151.0,0.00026027,7]
[392160758,1761222636713,-151.0,0.00026027,7]
[392160759,1761222636722,-151.0,0.00026027,7]
[392160760,1761222636731,-151.0,0.00026027,7]
[392160761,1761222636741,-151.0,0.00026027,7]
[392160762,1761222636752,-151.0,0.00026027,7]
[392160763,1761222636762,-151.0,0.00026027,7]
[392160764,1761222636771,-151.0,0.00026027,7]
[392160765,1761222636780,-151.0,0.00026027,7]
[392160766,1761222636791,-151.0,0.00026027,7]
[392160767,1761222636800,-151.0,0.00026027,7]
[392160768,1761222636809,-151.0,0.00026027,7]
[392160769,1761222636819,-151.0,0.00026027,7]
[392160770,1761222636829,-154.966948,0.00026027,7]
[392160771,1761222636839,-230.555605,0.00026027,7]
[392160772,1761222636849,-230.555605,0.00026027,7]
[392160773,1761222636858,-230.555605,0.00026027,7]
[392160774,1761222636868,-230.555605,0.00026027,7]
[392160775,1761222636877,-230.555605,0.00026027,7]
[392160776,1761222636887,-230.555605,0.00026027,7]
[392160777,1761222636896,-230.555605,0.00026027,7]
[392160778,1761222636905,-230.555605,0.00026027,7]
[392160779,1761222636915,-230.555605,0.00026027,7]
[392160780,1761222636924,-230.555605,0.00026027,7]
[392160781,1761222636933,-230.555605,0.00026027,7]
[392160782,1761222636943,-230.555605,0.00026027,7]
[392160783,1761222636960,-230.555605,0.00026027,7]
[392160784,1761222636969,-230.555605,0.00026027,7]
[392160785,1761222636979,-230.555605,0.00026027,7]
[392160786,1761222636988,-230.555605,0.00026027,7]
[392160787,1761222637000,-230.555605,0.00026027,7]
[392160788,1761222637009,-230.555605,0.00026027,7]
[392160789,1761222637020,-230.555605,0.00026027,7]
[392160790,1761222637031,-198.084585,0.00026027,7]
[392160791,1761222637041,-230.555602,0.00026027,7]
[392160792,1761222637050,-198.084585,0.00026027,7]
[392160793,1761222637060,-198.084585,0.00026027,7]
[392160794,1761222637071,-198.084585,0.00026027,7]
[392160795,1761222637081,-198.084585,0.00026027,7]
[392160796,1761222637090,-198.084585,0.00026027,7]
[392160797,1761222637100,-198.084585,0.00026027,7]
[392160798,1761222637109,-198.084585,0.00026027,7]